bitfinex-derivatives/quotes_SOLF0:USTF0_20241024
["timestamp","ask_amount","ask_price","bid_price","bid_amount"]
[1729804321684,4.46,177.99,177.8,10.0871]
[1729804321988,2.8111,177.97,177.81,1.5846]
[1729804322186,4.46,177.99,177.76,16.92]
[1729804322483,4.46,177.99,177.77,5.49353999]
[1729804322684,0.7487,177.99,177.77,4.46]
[1729804322879,2.8114,177.95,177.88,2.8123]
[1729804323078,0.7487,177.99,177.85,5.10753951]
[1729804323285,0.7487,177.99,177.85,2.2723]
[1729804323589,2.8116,177.94,177.87,2.8124]
[1729804323983,2.2716,177.95,177.87,2.8124]
[1729804324486,2.2716,177.95,177.78,1.6202]
[1729804324685,2.2716,177.95,177.79,4.46]
[1729804324985,4.46,177.95,177.8,4.46]
[1729804325193,4.46,177.95,177.85,2.8128]
[1729804325194,2.812,177.91,177.85,2.8128]
[1729804325380,2.812,177.91,177.79,1.6172]
[1729804325692,4.46,177.92,177.79,4.44729341]
[1729804325884,4.46,177.92,177.82,2.8132]
[1729804325885,2.8125,177.88,177.82,2.8132]
[1729804326083,2.8125,177.88,177.8,2.2732]
[1729804326287,4.46,177.92,177.79,4.42029729]
[1729804326493,4.46,177.91,177.8,4.46]
[1729804326693,2.8127,177.87,177.81,2.8134]
[1729804326891,2.8127,177.87,177.79,4.44504374]
[1729804327189,4.46,177.89,177.79,8.82630505]
[1729804327585,4.46,177.89,177.79,1.0772]
[1729804327893,4.46,177.89,177.79,3.88883817]
[1729804328087,4.46,177.89,177.82,2.8132]
[1729804328283,4.46,177.89,177.79,3.88883817]
[1729804328589,4.46,177.89,177.78,1.6202]
[1729804328786,60.18,177.98,177.78,1.6202]
[1729804328787,4.46,177.88,177.78,1.6202]
[1729804328993,2.8131,177.84,177.79,2.8137]
[1729804329194,4.46,177.86,177.76,5.4019]
[1729804329495,4.46,177.85,177.76,5.4019]
[1729804329697,4.46,177.85,177.76,8.21213165]
[1729804329893,2.8133,177.83,177.73,2.8147]
[1729804330104,4.46,177.85,177.69,1.6031]
[1729804330400,2.8139,177.79,177.73,2.8146]
[1729804330606,4.46,177.8,177.73,2.8146]
[1729804330891,4.46,177.79,177.7,0.62229991]
[1729804331200,4.46,177.79,177.69,4.48113358]
[1729804331394,4.46,177.79,177.69,8.94113358]
[1729804331599,4.46,177.79,177.69,3.94113358]
[1729804331997,4.46,177.8,177.7,2.87915924]
[1729804332201,4.46,177.8,177.69,3.94113358]
[1729804332502,4.46,177.8,177.69,4.46]
[1729804332697,0.1897,177.86,177.69,4.46]
[1729804332698,4.46,177.79,177.69,4.46]
[1729804332898,2.8142,177.77,177.71,2.815]
[1729804333094,1.006,177.85,177.68,5.59398777]
[1729804333398,4.46,177.84,177.68,4.46]
[1729804333893,4.46,177.84,177.67,59.81235389]
[1729804334398,2.2745,177.84,177.69,2.8153]
[1729804334594,2.2745,177.84,177.67,59.81235389]
[1729804334801,61.206,177.85,177.67,54.81235389]
[1729804335003,2.8142,177.77,177.72,2.8149]
[1729804335203,2.2742,177.77,177.72,2.8149]
[1729804335508,2.2742,177.77,177.68,4.46]
[1729804336206,5.0884,177.77,177.72,2.8149]
[1729804336607,4.46,177.78,177.72,2.8149]
[1729804336904,4.46,177.78,177.68,2.2749]
[1729804337314,4.46,177.77,177.68,2.2749]
[1729804337616,60.666,177.85,177.68,4.46]
[1729804337617,4.46,177.78,177.68,4.46]
[1729804337804,2.8139,177.79,177.68,4.46]
[1729804338003,2.2739,177.8,177.71,2.815]
[1729804338207,2.2739,177.8,177.68,4.46]
[1729804338506,2.8139,177.79,177.72,2.8149]
[1729804338707,2.8139,177.79,177.69,4.36]
[1729804339107,2.8139,177.79,177.72,2.8149]
[1729804339306,57.2179,177.85,177.69,4.36]
[1729804339511,4.36,177.84,177.69,4.36]
[1729804339712,4.36,177.84,177.69,3.8146]
[1729804340317,7.1731,177.84,177.7,1.64]
[1729804340511,7.1731,177.84,177.69,0.4546]
[1729804340708,6.5331,177.84,177.78,2.8138]
[1729804341019,4.36,177.84,177.74,4.36]
[1729804341214,4.36,177.84,177.75,3.0071]
[1729804341912,4.36,177.84,177.74,2.3671]
[1729804342110,4.36,177.84,177.79,2.8138]
[1729804342515,4.36,177.84,177.74,0.1809]
[1729804343119,4.36,177.84,177.81,2.8134]
[1729804343410,2.8127,177.86,177.75,4.36]
[1729804343609,2.1727,177.86,177.75,7.17198931]
[1729804344011,2.1727,177.86,177.76,4.36]
[1729804344207,4.36,177.86,177.81,2.8134]
[1729804344611,4.36,177.86,177.76,2.1734]
[1729804345315,4.36,177.86,177.75,1.47856858]
[1729804345519,4.36,177.86,177.76,4.36]
[1729804345721,4.36,177.87,177.76,4.36]
[1729804345913,4.36,177.87,177.82,2.8132]
[1729804346315,4.36,177.87,177.82,2.7732]
[1729804346523,2.1325,177.88,177.82,2.7732]
[1729804346716,4.36,177.87,177.82,2.7732]
[1729804347221,7.1726,177.87,177.82,2.7732]
[1729804347719,4.36,177.87,177.76,5.8851]
[1729804348513,2.813,177.85,177.76,5.8851]
[1729804348916,2.813,177.85,177.8,2.8136]
[1729804349314,2.8131,177.84,177.74,7.21415481]
[1729804349521,2.8131,177.84,177.79,2.8138]
[1729804349820,4.36,177.83,177.79,2.8138]
[1729804350130,4.36,177.83,177.77,1.40682306]
[1729804350622,7.1732,177.83,177.79,2.8138]
[1729804350824,4.36,177.83,177.77,1.40682306]
[1729804351524,4.36,177.83,177.79,2.8137]
[1729804352518,4.36,177.83,177.8,2.8136]
[1729804353321,7.1732,177.83,177.79,2.8138]
[1729804354920,3.0851,177.86,177.82,2.8132]
[1729804354921,10.2578,177.86,177.82,2.8132]
[1729804355119,7.4451,177.86,177.73,4.36]
[1729804355527,2.8129,177.85,177.8,2.8135]
[1729804355727,2.8129,177.85,177.73,4.36]
[1729804355926,2.8129,177.85,177.8,2.8135]
[1729804356720,2.8131,177.84,177.8,2.8135]
[1729804357528,7.4451,177.86,177.73,4.36]
[1729804357824,7.4451,177.86,177.7,4.32145316]
[1729804357825,7.4451,177.86,177.72,4.36]
[1729804358030,1.5657,177.85,177.72,4.36]
[1729804358424,2.8138,177.8,177.74,2.8145]
[1729804358618,4.36,177.8,177.7,8.68145316]
[1729804359225,2.8143,177.76,177.71,2.815]
[1729804359535,2.8143,177.76,177.68,1.5133]
[1729804359536,4.36,177.76,177.68,1.5133]
[1729804360235,2.8145,177.75,177.7,2.8151]
[1729804363233,4.36,177.76,177.68,1.5133]
[1729804363431,7.1743,177.76,177.71,2.815]
[1729804363735,2.8143,177.76,177.71,2.815]
[1729804363934,4.36,177.75,177.71,2.815]
[1729804364536,7.1745,177.75,177.68,2.8155]
[1729804364834,7.1745,177.75,177.65,5.892]
[1729804365035,7.1745,177.75,177.7,2.8151]
[1729804367735,7.1745,177.75,177.71,2.8151]
[1729804368338,7.1745,177.75,177.7,2.8152]
[1729804368541,2.8147,177.74,177.66,4.99552676]
[1729804368931,2.8147,177.74,177.69,2.8153]
[1729804369139,4.36,177.75,177.66,7.74726764]
[1729804369335,4.36,177.75,177.65,1.532]
[1729804369530,4.36,177.75,177.69,2.8153]
[1729804369837,4.36,177.75,177.66,2.85266063]
[1729804370037,2.8146,177.74,177.66,2.85266063]
[1729804370340,4.36,177.75,177.71,2.815]
[1729804370639,4.36,177.75,177.66,2.85266063]
[1729804371333,4.36,177.75,177.71,2.815]
[1729804371539,4.36,177.75,177.65,1.532]
[1729804372141,4.36,177.75,177.72,2.8148]
[1729804372336,4.36,177.75,177.65,1.532]
[1729804373434,4.36,177.75,177.73,2.8146]
[1729804374228,4.3,177.76,177.73,2.8146]
[1729804375043,4.3,177.76,177.69,2.8153]
[1729804375243,4.3,177.76,177.66,4.9865116]
[1729804375443,4.3,177.76,177.66,7.86156983]
[1729804375650,4.3,177.76,177.72,2.8148]
[1729804376447,5.6228,177.95,177.68,4.3]
[1729804376745,3.269,177.87,177.69,1.5169]
[1729804376941,4.3,177.86,177.69,1.5169]
[1729804377645,2.8134,177.82,177.76,2.8141]
[1729804377941,4.3,177.81,177.69,1.5169]
[1729804378338,4.3,177.84,177.69,1.5169]
[1729804379142,4.3,177.84,177.7,1.40693211]
[1729804379638,4.3,177.84,177.7,4.98215992]
[1729804379839,2.8132,177.83,177.78,2.814]
[1729804381647,4.3,177.84,177.72,4.3]
[1729804381948,4.3,177.84,177.7,4.98311019]
[1729804382338,2.8134,177.82,177.77,2.8141]
[1729804382546,1.5358,177.81,177.72,4.3]
[1729804382840,4.3,177.83,177.73,1.5303]
[1729804383040,4.3,177.85,177.73,1.5303]
[1729804383236,4.3,177.85,177.73,3.0453]
[1729804383940,1.5358,177.87,177.73,3.0453]
[1729804384244,4.3,177.89,177.73,3.0453]
[1729804384444,4.3,177.89,177.75,5.6288]
[1729804384640,4.3,177.9,177.76,5.798]
[1729804385047,4.3,177.9,177.88,2.8123]
[1729804385344,1.5358,177.93,177.81,4.3]
[1729804385645,5.8358,177.93,177.82,5.8753]
[1729804386146,8.6474,177.93,177.87,2.8124]
[1729804386736,5.8358,177.93,177.82,5.8753]
[1729804387545,8.6474,177.93,177.87,2.8124]
[1729804387847,5.8358,177.93,177.82,5.8753]
[1729804388047,8.6474,177.93,177.87,2.8124]
[1729804388951,8.6475,177.93,177.87,2.8125]
[1729804389143,5.8358,177.93,177.87,2.8125]
[1729804389344,5.8358,177.93,177.82,5.8753]
[1729804389544,2.8118,177.92,177.82,5.8753]
[1729804389946,2.8118,177.92,177.87,2.8124]
[1729804390445,5.8358,177.93,177.83,1.40644585]
[1729804391045,2.8122,177.89,177.85,2.8128]
[1729804391246,5.8358,177.93,177.82,1.5753]
[1729804391642,2.8118,177.92,177.87,2.8124]
[1729804392048,5.8358,177.93,177.82,1.5753]
[1729804392546,8.6474,177.93,177.88,2.8123]
[1729804393141,4.3,177.92,177.88,2.8123]
[1729804393341,1.5358,177.93,177.82,1.5753]
[1729804393541,1.5358,177.93,177.83,5.9222]
[1729804393952,1.5358,177.93,177.89,2.8122]
[1729804395241,1.5358,177.93,177.83,5.9222]
[1729804395451,1.5358,177.93,177.83,1.6222]
[1729804396048,1.5358,177.93,177.88,2.8123]
[1729804396548,1.5358,177.93,177.83,1.6222]
[1729804397651,1.5358,177.93,177.82,5.8753]
[1729804397652,2.8126,177.87,177.82,2.8133]
[1729804398052,4.3,177.89,177.79,4.3]
[1729804398353,2.8124,177.88,177.82,2.8132]
[1729804398648,4.3,177.89,177.76,3.0978]
[1729804398849,2.8129,177.85,177.8,2.8135]
[1729804399048,7.3529,177.85,177.8,2.8135]
[1729804399349,4.54,177.85,177.76,3.0978]
[1729804399545,4.54,177.85,177.73,6.0536]
[1729804399546,4.54,177.85,177.73,4.54]
[1729804399753,1.5769,177.84,177.73,4.54]
[1729804400150,1.5769,177.84,177.76,2.8142]
[1729804400548,1.5769,177.84,177.73,4.54]
[1729804400847,2.8137,177.8,177.75,2.8144]
[1729804401151,2.814,177.78,177.73,2.8146]
[1729804401555,4.54,177.79,177.7,3.1376]
[1729804401950,2.8143,177.76,177.7,2.8152]
[1729804402856,7.3545,177.75,177.69,2.8152]
[1729804403156,4.54,177.75,177.64,4.54]
[1729804403451,2.8147,177.74,177.68,2.8154]
[1729804404047,4.54,177.75,177.67,2.8157]
[1729804404255,1.4801,177.74,177.64,4.54]
[1729804404652,4.2947,177.74,177.67,2.8156]
[1729804404853,1.4801,177.74,177.63,3.1376]
[1729804405758,4.2948,177.74,177.67,2.8156]
[1729804405954,1.4801,177.74,177.63,3.1376]
[1729804406149,2.8151,177.71,177.64,2.8162]
[1729804406351,4.54,177.7,177.64,2.8162]
[1729804406557,4.54,177.7,177.63,1.5157]
[1729804406959,4.54,177.7,177.65,2.816]
[1729804407355,4.54,177.7,177.59,1.5319]
[1729804407562,4.54,177.7,177.62,2.8164]
[1729804408253,2.8155,177.69,177.62,2.8164]
[1729804408451,4.54,177.7,177.64,4.99134243]
[1729804408648,2.8158,177.67,177.64,2.52564243]
[1729804408849,4.54,177.66,177.54,6.0552]
[1729804409051,4.54,177.65,177.54,4.54]
[1729804409252,7.3561,177.65,177.59,2.8169]
[1729804410364,7.3561,177.65,177.6,2.8168]
[1729804410769,7.356,177.65,177.59,2.8168]
[1729804411062,7.356,177.65,177.53,1.486]
[1729804411262,7.3561,177.65,177.58,2.817]
[1729804411462,7.3561,177.65,177.53,1.486]
[1729804411758,4.54,177.65,177.53,1.486]
[1729804412063,2.8162,177.64,177.53,1.486]
[1729804412457,2.8162,177.64,177.59,2.817]
[1729804412858,4.54,177.65,177.53,1.486]
[1729804413053,2.8164,177.63,177.57,2.8172]
[1729804413459,2.8165,177.62,177.57,2.8172]
[1729804413658,4.56,177.61,177.53,1.486]
[1729804413867,4.56,177.61,177.56,2.8174]
[1729804414865,4.56,177.61,177.52,14.97402731]
[1729804415066,7.3768,177.61,177.55,2.8175]
[1729804415265,4.56,177.61,177.52,14.97402731]
[1729804415660,4.56,177.61,177.57,2.8172]
[1729804416267,4.56,177.6,177.59,2.8168]
[1729804418566,6.0321,177.65,177.53,3.1352]
[1729804418766,1.6283,177.66,177.53,7.6952]
[1729804418969,4.56,177.65,177.53,7.6952]
[1729804419268,4.56,177.65,177.62,2.8164]
[1729804419461,4.56,177.65,177.53,7.6952]
[1729804419662,1.5142,177.76,177.53,7.6952]
[1729804419863,2.8151,177.72,177.53,7.6952]
[1729804420068,4.56,177.71,177.53,7.6952]
[1729804420260,4.56,177.7,177.53,7.6952]
[1729804420767,4.56,177.7,177.65,2.8159]
[1729804421063,4.56,177.7,177.53,7.6952]
[1729804421064,4.56,177.7,177.57,4.56]
[1729804421263,4.56,177.7,177.58,1.5204]
[1729804423165,7.3753,177.7,177.58,1.5204]
[1729804423562,7.3753,177.7,177.64,2.816]
[1729804424068,1.5936,177.69,177.64,2.816]
[1729804424459,1.5936,177.69,177.59,1.40808518]
[1729804424973,1.5936,177.69,177.58,1.5204]
[1729804425266,2.8156,177.68,177.58,1.5204]
[1729804425464,1.5936,177.69,177.58,1.5204]
[1729804425671,3.2695,177.68,177.58,1.5204]
[1729804425870,3.2695,177.68,177.55,4.56]
[1729804426268,3.2695,177.68,177.54,4.90585351]
[1729804426860,2.8162,177.64,177.59,2.8169]
[1729804427069,4.56,177.63,177.53,3.1352]
[1729804427471,4.56,177.63,177.58,2.817]
[1729804428874,4.56,177.63,177.59,2.817]
[1729804433075,4.56,177.63,177.56,2.8174]
[1729804433275,4.56,177.63,177.53,3.1352]
[1729804433684,4.56,177.63,177.59,2.8169]
[1729804433976,6.0136,177.69,177.56,4.42]
[1729804434174,4.42,177.69,177.56,4.42]
[1729804434774,2.8155,177.68,177.56,4.42]
[1729804435871,4.42,177.69,177.56,4.42]
[1729804436072,4.42,177.69,177.64,2.8161]
[1729804438176,4.42,177.69,177.56,4.42]
[1729804438385,4.42,177.69,177.66,2.8157]
[1729804438673,4.42,177.69,177.56,4.42]
[1729804439377,4.42,177.68,177.59,2.8169]
[1729804439573,4.42,177.68,177.6,1.6732]
[1729804440373,4.42,177.68,177.65,2.8159]
[1729804442171,4.42,177.68,177.66,2.8159]
[1729804442577,4.42,177.68,177.6,1.6732]
[1729804444376,4.42,177.68,177.65,2.816]
[1729804446380,4.5753,177.7,177.65,2.816]
[1729804446586,4.42,177.69,177.65,2.816]
[1729804446782,4.42,177.69,177.6,1.6732]
[1729804446783,4.42,177.69,177.66,2.8159]
[1729804447285,1.76,177.7,177.61,3.2787]
[1729804447485,1.76,177.7,177.69,2.8154]
[1729804447486,6.18,177.7,177.69,2.8154]
[1729804447689,1.76,177.7,177.69,2.8154]
[1729804459395,4.42,177.76,177.74,2.8145]
[1729804459687,4.42,177.77,177.64,4.42]
[1729804459891,4.42,177.78,177.64,4.42]
[1729804461384,4.42,177.78,177.73,2.8147]
[1729804461982,7.234,177.78,177.73,2.8147]
[1729804462183,4.42,177.78,177.67,1.2661]
[1729804462379,4.42,177.78,177.68,1.2783]
[1729804462592,4.42,177.78,177.68,5.6783]
[1729804463290,2.4548,177.86,177.68,5.6783]
[1729804463488,4.4,177.8,177.68,5.6783]
[1729804463692,7.2137,177.8,177.71,2.815]
[1729804463895,7.2137,177.8,177.68,5.6783]
[1729804464095,4.4,177.8,177.68,5.6783]
[1729804464292,7.2137,177.8,177.75,2.8144]
[1729804464593,4.4,177.8,177.69,1.2491]
[1729804464897,4.4,177.8,177.76,2.8142]
[1729804465096,4.4,177.8,177.69,1.2491]
[1729804465393,4.4,177.8,177.76,2.8142]
[1729804466189,4.4,177.8,177.69,1.2491]
[1729804466698,4.4,177.8,177.76,2.8141]
[1729804467791,3.6748,177.86,177.72,4.4]
[1729804467991,4.4,177.85,177.72,4.4]
[1729804468298,4.4,177.84,177.72,4.4]
[1729804469192,2.8134,177.82,177.78,2.8139]
[1729804469492,4.4,177.84,177.72,4.4]
[1729804469798,4.4,177.84,177.71,4.4]
[1729804470403,2.8138,177.8,177.75,2.8143]
[1729804470593,7.2138,177.8,177.75,2.8143]
[1729804470900,2.8142,177.77,177.73,2.8147]
[1729804471099,4.4,177.8,177.72,4.94074909]
[1729804471303,4.4,177.8,177.72,6.34813608]
[1729804471494,2.8144,177.76,177.72,9.16303608]
[1729804471695,4.4,177.8,177.72,6.34813608]
[1729804471899,1.2685,177.79,177.72,6.34813608]
[1729804472099,2.4563,177.79,177.72,6.34813608]
[1729804472900,2.4563,177.79,177.72,1.40738699]
[1729804473097,2.8146,177.75,177.72,1.40738699]
[1729804473292,7.2146,177.75,177.72,1.40738699]
[1729804473488,7.2146,177.75,177.71,2.815]
[1729804476300,2.8147,177.74,177.7,2.8152]
[1729804477905,2.8151,177.71,177.67,2.8156]
[1729804478999,2.8149,177.73,177.68,2.8154]
[1729804479196,4.4,177.75,177.61,1.1866]
[1729804479701,2.8151,177.71,177.65,2.816]
[1729804479901,4.4,177.7,177.65,2.816]
[1729804480602,4.4,177.7,177.66,2.8158]
[1729804484904,4.4,177.7,177.67,2.8157]
[1729804485600,4.4,177.7,177.61,1.1866]
[1729804485810,4.42,177.71,177.61,1.1866]
[1729804486011,4.42,177.71,177.62,4.42]
[1729804486401,4.42,177.71,177.68,1.40788978]
[1729804486904,4.42,177.71,177.68,4.22328978]
[1729804487103,2.8149,177.73,177.68,4.22328978]
[1729804487406,7.2349,177.73,177.68,4.22328978]
[1729804487910,7.2349,177.73,177.68,2.8154]
[1729804489413,7.2349,177.73,177.69,1.40781171]
[1729804489911,7.2349,177.73,177.69,4.22321171]
[1729804490205,7.2349,177.73,177.69,2.8154]
[1729804491806,4.42,177.73,177.72,2.8149]
[1729804492007,4.42,177.73,177.62,10.053]
[1729804493014,4.42,177.73,177.7,2.8151]
[1729804493214,4.42,177.73,177.57,63.55578357]
[1729804493414,4.0063,177.72,177.62,2.8165]
[1729804493715,4.0063,177.72,177.58,7.9428]
[1729804493906,4.0063,177.72,177.58,10.69994006]
[1729804496318,4.0063,177.72,177.67,2.8157]
[1729804496615,2.8151,177.71,177.67,2.8157]
[1729804496812,4.42,177.73,177.67,2.8157]
[1729804497618,2.815,177.72,177.67,2.8157]
[1729804499319,2.815,177.72,177.68,2.8155]
[1729804500411,2.8151,177.71,177.68,2.8155]
[1729804501112,2.815,177.72,177.68,2.8155]
[1729804501313,4.42,177.73,177.66,2.8157]
[1729804501711,2.8153,177.7,177.66,2.8157]
[1729804502017,4.32,177.69,177.63,1.40773326]
[1729804502409,7.1355,177.69,177.63,1.40773326]
[1729804502613,4.32,177.69,177.65,2.8159]
[1729804503119,7.1354,177.69,177.65,2.8159]
[1729804503808,4.32,177.69,177.64,2.8161]
[1729804504013,4.32,177.69,177.63,1.40773326]
[1729804505112,4.32,177.69,177.66,2.8159]
[1729804506213,4.32,177.69,177.63,1.40773326]
[1729804507516,4.32,177.69,177.67,2.8156]
[1729804507716,4.32,177.71,177.63,1.40773326]
[1729804507917,4.32,177.71,177.63,5.72773326]
[1729804508322,4.32,177.71,177.7,2.8152]
[1729804508722,4.32,177.73,177.63,5.72773326]
[1729804508924,4.32,177.73,177.72,2.8149]
[1729804509124,60.78,177.81,177.63,5.72773326]
[1729804509623,4.32,177.8,177.63,5.72773326]
[1729804510023,4.32,177.8,177.71,2.815]
[1729804510024,2.8143,177.76,177.71,2.815]
[1729804510219,4.32,177.75,177.71,2.815]
[1729804510427,4.32,177.75,177.64,4.32]
[1729804510619,2.8147,177.74,177.69,2.8153]
[1729804515025,2.8149,177.73,177.65,1.203]
[1729804515622,4.32,177.75,177.65,1.203]
[1729804515820,2.8149,177.72,177.65,4.019]
[1729804516021,4.32,177.71,177.65,4.019]
[1729804517624,4.32,177.71,177.65,2.816]
[1729804519130,2.8156,177.68,177.62,2.8164]
[1729804519523,4.26,177.67,177.62,2.8164]
[1729804521131,4.26,177.67,177.59,1.1689]
[1729804521524,4.26,177.67,177.58,1.1594]
[1729804521726,2.8163,177.64,177.58,1.1594]
[1729804521931,4.26,177.63,177.58,1.1594]
[1729804522131,4.26,177.63,177.57,2.8172]
[1729804523835,7.0763,177.63,177.57,2.8172]
[1729804524137,7.0763,177.63,177.54,115.32092332]
[1729804524138,4.26,177.63,177.58,2.8171]
[1729804524631,7.0764,177.63,177.54,115.32092332]
[1729804524932,4.26,177.63,177.55,2.8176]
[1729804525137,4.26,177.63,177.5,5.5132]
[1729804525532,1.241,177.62,177.5,5.5132]
[1729804525931,2.8167,177.61,177.55,2.8175]
[1729804526131,1.241,177.62,177.5,5.5132]
[1729804526333,2.4478,177.62,177.5,5.5132]
[1729804527032,2.4478,177.62,177.5,1.2532]
[1729804527227,2.8172,177.58,177.52,2.818]
[1729804527434,7.0772,177.58,177.5,1.2532]
[1729804527631,4.26,177.58,177.5,1.2532]
[1729804527826,4.26,177.58,177.54,2.8177]
[1729804528134,4.26,177.62,177.52,4.26]
[1729804528339,4.26,177.62,177.6,2.8168]
[1729804528638,4.26,177.62,177.52,4.26]
[1729804528834,2.8163,177.64,177.58,2.817]
[1729804529038,4.26,177.65,177.58,2.817]
[1729804530238,2.8163,177.63,177.58,2.817]
[1729804530741,4.26,177.65,177.52,4.26]
[1729804531640,2.8165,177.62,177.52,4.26]
[1729804531841,4.26,177.61,177.52,4.26]
[1729804532136,4.26,177.61,177.5,1.2532]
[1729804532532,2.8171,177.59,177.53,2.8179]
[1729804533036,2.8171,177.59,177.5,1.2532]
[1729804533541,2.8171,177.59,177.54,2.8176]
[1729804533746,4.26,177.61,177.5,1.2532]
[1729804534045,4.26,177.61,177.43,11.14039387]
[1729804534342,2.818,177.53,177.46,2.8189]
[1729804534537,4.26,177.52,177.46,2.8189]
[1729804535138,7.0781,177.52,177.46,2.8189]
[1729804535844,1.1856,177.58,177.43,11.14039387]
[1729804536248,4.26,177.57,177.44,1.2411]
[1729804536947,7.0774,177.57,177.5,2.8183]
[1729804537140,7.0774,177.57,177.44,1.2411]
[1729804537341,2.8177,177.55,177.44,1.2411]
[1729804537638,4.26,177.57,177.44,1.2411]
[1729804539643,2.8183,177.51,177.46,2.819]
[1729804539845,4.26,177.5,177.46,2.819]
[1729804540242,7.0784,177.5,177.46,2.819]
[1729804542741,7.0784,177.5,177.45,2.8192]
[1729804543048,7.0784,177.5,177.44,4.90257675]
[1729804543742,4.26,177.5,177.47,2.8189]
[1729804545656,4.26,177.5,177.48,2.8186]
[1729804546354,4.26,177.49,177.48,2.8186]
[1729804546653,4.26,177.49,177.47,2.8188]
[1729804554157,4.26,177.49,177.48,2.8187]
[1729804556161,4.2,177.5,177.49,2.8185]
[1729804557054,4.2,177.51,177.5,2.8183]
[1729804557650,2.8177,177.55,177.5,2.8183]
[1729804557855,4.2,177.54,177.44,2.85132662]
[1729804559154,4.2,177.54,177.51,2.8181]
[1729804560863,4.2,177.54,177.5,2.8184]
[1729804561461,4.2,177.54,177.51,2.8182]
[1729804562857,4.2,177.54,177.52,2.818]
[1729804564060,4.2,177.53,177.44,2.85394501]
[1729804564258,4.2,177.54,177.44,2.85394501]
[1729804564458,4.2,177.55,177.44,2.85394501]
[1729804564659,4.2,177.55,177.47,2.8188]
[1729804564863,4.2,177.55,177.44,2.85394501]
[1729804565264,164.05488601,177.66,177.43,1.2861]
[1729804565564,7.8043,177.65,177.44,1.0354079]
[1729804565764,7.8043,177.65,177.55,2.8176]
[1729804565765,2.8167,177.61,177.55,2.8176]
[1729804565970,4.2,177.6,177.55,2.8176]
[1729804566160,4.2,177.6,177.49,4.2]
[1729804566568,4.2,177.6,177.55,2.8176]
[1729804567565,7.0169,177.6,177.55,2.8176]
[1729804568669,7.0169,177.6,177.49,4.2]
[1729804568873,7.0169,177.6,177.56,2.8174]
[1729804569171,4.2,177.6,177.56,2.8174]
[1729804569873,4.2,177.6,177.49,4.2]
[1729804570067,2.8173,177.57,177.45,4.2]
[1729804570269,4.2,177.6,177.45,4.2]
[1729804570270,4.2,177.56,177.45,4.2]
[1729804570567,4.2,177.55,177.45,4.2]
[1729804570770,4.2,177.55,177.54,2.8176]
[1729804572471,4.2,177.58,177.56,2.8174]
[1729804573764,2.8167,177.61,177.56,2.8174]
[1729804573966,4.2,177.6,177.56,2.8174]
[1729804576162,4.2,177.6,177.5,3.6947]
[1729804576367,4.2,177.6,177.57,2.8173]
[1729804577969,4.2,177.6,177.5,3.6947]